Cogmind - Beta 10.2 @@@ ROGUE MODE // 2021.10.24 @ 12:15:17 Player: Jezoensis Result: Destroyed by D-53 Grenadier with Mini Grenade Launcher Performance ------------- Evolutions (0) 0 Regions Visited (2) 400 Robots Destroyed (35) 175 Value Destroyed (458) 458 Prototype IDs (0) 0 Alien Tech Used (0) 0 Bonus (0) 0 TOTAL SCORE: 1033 Bonus ------- None Cogmind --------- Core Integrity 0/250 Matter 286/300 Energy 100/100 System Corruption 8% Temperature Cool (0) Movement Treading (160) Location -10/Mines Parts ------- > --- POWER (1) -------- (None) > --- PROPULSION (2) --- Light Treads > --- UTILITY (2) ------ Large Storage Unit > --- WEAPON (2) ------- (None) > --- INVENTORY (10) --- Ion Engine High-capacity Storage Unit High-capacity Matter Pod (186) Structural Scanner Terrain Scan Processor Mining Laser Peak State ------------ > --- POWER ------------ Ion Engine > --- PROPULSION ------- Light Treads Light Treads > --- UTILITY ---------- Large Storage Unit Improved Terrain Scanner > --- WEAPON ----------- Particle Gun Light Assault Rifle > --- INVENTORY -------- Ion Engine Light Treads Light Treads High-capacity Storage Unit High-capacity Matter Pod Structural Scanner Terrain Scan Processor Mining Laser [Rating: 9] Favorites ----------- Power Ion Engine Engine Ion Engine Propulsion Light Treads Treads Light Treads Utility Improved Terrain Scanner Device Improved Terrain Scanner Storage Small Storage Unit Processor Transport Network Coupler Weapon Assault Rifle Energy Gun Medium Laser Ballistic Gun Assault Rifle Special Weapon Mining Laser Build | -11 -10 -10 ------- Run | Scr Mat Min Slots Evolved . | . . . Power . | . . . Propulsion . | . . . Utility . | . . . Weapon . | . . . Parts Attached 19 | 7 6 6 Power 3 | 1 2 . Engine 3 | 1 2 . Core . | . . . Reactor . | . . . Propulsion 4 | 2 . 2 Treads 4 | 2 . 2 Leg . | . . . Wheel . | . . . Hover . | . . . Flight . | . . . Utility 5 | 2 3 . Device 2 | 1 1 . Storage 2 | 1 1 . Processor 1 | . 1 . Hackware . | . . . Protection . | . . . Artifact . | . . . Weapon 7 | 2 1 4 Energy Gun 3 | . 1 2 Energy Cannon . | . . . Ballistic Gun 3 | 2 . 1 Ballistic Cannon . | . . . Launcher . | . . . Special Weapon 1 | . . 1 Impact Weapon . | . . . Slashing Weapon . | . . . Piercing Weapon . | . . . Special Melee Weapon . | . . . Unidentified Prototypes . | . . . Parts Lost 10 | . 1 9 Power 2 | . 1 1 Propulsion 3 | . . 3 Utility 1 | . . 1 Weapon 4 | . . 4 Highest Loss Streak 8 | . 1 8 Average Slot Usage (%) 99 | . 100 97 Engine 14 | . 14 14 Treads 27 | . 28 27 Device 11 | . 9 13 Storage 14 | . 14 14 Processor 2 | . 4 . Energy Gun 9 | . 10 8 Ballistic Gun 17 | . 17 17 Naked Turns . | . . . Heaviest Build 26 | 11 26 26 Greatest Support 40 | 40 40 40 Greatest Overweight (x) 1 | . . 1 Average Overweight (x) . | . . . Largest Inventory Capacity 10 | 6 10 10 Average Capacity 7 | 5 6 10 Most Carried 8 | 3 8 8 Average Carried 5 | 2 5 7 Final Capacity 10 | 6 10 10 Final Carried 7 | 3 7 6 Class Distribution -------------------- 100% | Mutant Dominant Class ---------------- Mutant | -10/Materials Mutant | -10/Mines Resources | -11 -10 -10 ----------- Run | Scr Mat Min Matter Collected 778 | 210 342 226 Remotely . | . . . Salvage Created 963 | 164 515 284 Parts 74 | 14 40 20 Haulers Intercepted 2 | . 2 . Recyclers Shooed . | . . . Parts Field Recycled . | . . . Retrieved Matter . | . . . Parts Self-Destructed . | . . . Prevented . | . . . Kills | -11 -10 -10 ------- Run | Scr Mat Min Combat Hostiles Destroyed 16 | . 12 4 Guns 16 | . 12 4 Classes Destroyed 8 | 2 5 1 Worker 5 | . 4 1 Builder 3 | . . 3 Tunneler 6 | 5 1 . Hauler 2 | . 2 . Recycler 1 | 1 . . Watcher 2 | . 2 . Swarmer 9 | . 9 . Grunt 7 | . 3 4 Best Kill Streak 10 | 6 10 2 Combat Bots Only 6 | . 6 1 Max Kills in Single Turn 2 | 1 2 1 Gunslinging 1 | . 1 . Exploded . | . . . Melee . | . . . Uniques/NPCs Destroyed . | . . . Combat | -11 -10 -10 -------- Run | Scr Mat Min Damage Taken 1264 | . 414 850 Core 278 | . 84 194 Absorbed by Shields . | . . . Core Remaining (%) 100 | 100 . . Volleys Fired 74 | 17 33 24 Largest 2 | 2 2 2 Hottest 100 | 40 70 100 Shots Fired 145 | 34 66 45 Gun 144 | 34 66 44 Cannon . | . . . Launcher . | . . . Special 1 | . . 1 Kinetic 114 | 34 47 33 Thermal 31 | . 19 12 Explosive . | . . . Electromagnetic . | . . . Robot Hit Streak 14 | 12 14 11 Robot Miss Streak 3 | 1 2 3 Penetration Max . | . . . Secondary Targets 2 | . 2 . Max Gunslinging Chain 1 | . 1 . Shots Hit Robots 97 | 26 44 27 Core Hits 50 | 10 25 15 Critical Hits . | . . . Critical Kills . | . . . Critical Parts Destroyed . | . . . Melee Attacks . | . . . Impact . | . . . Slashing . | . . . Piercing . | . . . Sneak Attacks . | . . . Combat Hostiles . | . . . Follow-up Attacks . | . . . Damage Inflicted 1161 | 274 557 330 Guns 1161 | 274 557 330 Cannons . | . . . Explosions . | . . . Melee . | . . . Ramming . | . . . Kinetic 845 | 274 342 229 Thermal 316 | . 215 101 Explosive . | . . . Electromagnetic . | . . . Impact . | . . . Slashing . | . . . Piercing . | . . . Highest Corruption 8 | . . 8 Average Corruption 8 | . . 8 Corruption Purged . | . . . Effects 1 | . . 1 Matter Fused 1 | . . 1 Overload Shots . | . . . Overflow Damage . | . . . Projectiles . | . . . Explosions . | . . . Melee . | . . . Knockbacks . | . . . Impact . | . . . Kinetic . | . . . Secondary . | . . . Self-Inflicted Damage . | . . . Shots . | . . . Rammed . | . . . Targets Rammed . | . . . Kicked . | . . . Crushed . | . . . Highest Temperature 99 | . 74 99 Average Temperature 25 | . 23 27 Received Heat Transfer 171 | . 42 129 Siege Activations . | . . . Robots Corrupted . | . . . Combat Hostiles . | . . . Parts Fried . | . . . Impact Corruptions . | . . . Robots Melted . | . . . Combat Hostiles . | . . . Parts Melted 2 | . 2 . Heat Transferred 925 | . 629 296 Parts Sabotaged . | . . . Parts Stolen . | . . . Parts Stripped . | . . . Power Chain Reactions . | . . . Missiles Intercepted . | . . . Alert | -11 -10 -10 ------- Run | Scr Mat Min Peak Influence 416 | 30 416 144 Initial 34 | . 19 34 Average 120 | 11 176 54 Maximum Alert Level 2 | . 2 . Low Security (%) 72 | 100 52 100 Level 1 19 | . 34 . Level 2 7 | . 13 . Level 3 . | . . . Level 4 . | . . . Level 5 . | . . . High Security . | . . . Max Security . | . . . Squads Dispatched . | . . . Investigation . | . . . Extermination . | . . . Reinforcement . | . . . Assault . | . . . Garrison . | . . . Intercept . | . . . Construction Impeded . | . . . Haulers Reinforced . | . . . Stealth | -11 -10 -10 --------- Run | Scr Mat Min Distress Signals 2 | . 2 . Communications Jammed . | . . . Distress Signals . | . . . Times Spotted 41 | . 17 24 Peak Tracking Total 20 | . 6 20 Tactical Retreats 2 | . 1 1 Traps | -11 -10 -10 ------- Run | Scr Mat Min Traps Triggered 2 | . 2 . Indirectly . | . . . Trap Hack Attempts . | . . . Triggered . | . . . Disarmed . | . . . Reprogrammed . | . . . Reused . | . . . Traps Extracted . | . . . Installed . | . . . Triggered . | . . . Machines | -11 -10 -10 ---------- Run | Scr Mat Min Machines Disabled 1 | . . 1 Max in Single Turn 1 | . . 1 Machines Sabotaged . | . . . Garrisons Compromised . | . . . Overloaded Fab Kills . | . . . Fab Network Shutdowns . | . . . Hacking | -11 -10 -10 --------- Run | Scr Mat Min Machines Accessed 5 | . 4 1 Terminals 4 | . 4 . Fabricators . | . . . Repair Stations . | . . . Recycling Units . | . . . Scanalyzers . | . . . Garrison Access . | . . . Total Hacks 18 | . 17 1 Successful 9 | . 8 1 Failed 8 | . 8 . Catastrophic 1 | . 1 . Database Lockouts 1 | . 1 . Manual 13 | . 13 . Terminals 17 | . 17 . Fabricators . | . . . Repair Stations . | . . . Recycling Units . | . . . Scanalyzers . | . . . Garrison Access . | . . . Terminal Hacks 5 | . 4 1 Part Schematic 1 | . 1 . Open Door 1 | . . 1 Branch Access Points 1 | . 1 . Terminal Index 1 | . 1 . Unreport Threat 1 | . 1 . Fabricator Hacks . | . . . Repair Station Hacks . | . . . Recycling Unit Hacks . | . . . Scanalyzer . | . . . Garrison Access Hacks . | . . . Unauthorized Hacks 4 | . 4 . Terminals 4 | . 4 . Track 2 | . 2 . Botnet 2 | . 2 . Fabricators . | . . . Repair Stations . | . . . Recycling Units . | . . . Scanalyzers . | . . . Garrison Access . | . . . Data Cores Recovered . | . . . Used . | . . . Hacking Detections 4 | . 4 . Full Trace Events . | . . . Feedback Events . | . . . Feedback Blocked . | . . . Robot Schematics Acquired . | . . . Robots Built . | . . . Matter . | . . . Time . | . . . Total Robot Build Rating . | . . . Part Schematics Acquired 1 | . 1 . Parts Built . | . . . Matter . | . . . Time . | . . . Total Part Build Rating . | . . . Parts Repaired . | . . . Time . | . . . Parts Recycled . | . . . Recycled Matter . | . . . Retrieved Matter . | . . . Retrieved Components . | . . . Parts Scanalyzed . | . . . Part Schematics Acquired . | . . . Parts Damaged . | . . . Bothacking | -11 -10 -10 ------------ Run | Scr Mat Min Used RIF Installer . | . . . Robots Hacked . | . . . Non-combat . | . . . Combat . | . . . Robot Hacks Applied . | . . . Relay Couplers Released . | . . . Robots Rewired . | . . . Allies Hacked . | . . . Hacks Repelled . | . . . Allies | -11 -10 -10 -------- Run | Scr Mat Min Total Allies . | . . . Largest Group . | . . . Highest-Rated Group . | . . . Highest-Rated Ally . | . . . Total Orders . | . . . Ally Attacks . | . . . Total Damage . | . . . Kills . | . . . Allies Corrupted . | . . . Allies Melted . | . . . Intel | -11 -10 -10 ------- Run | Scr Mat Min Robot Analysis Total . | . . . Derelict Logs Recovered . | . . . Drone Launches . | . . . Drone Recoveries . | . . . Exploration | -11 -10 -10 ------------- Run | Scr Mat Min Turns Passed 1274 | 109 724 441 Spaces Moved 642 | 35 381 226 Core 8 | 8 . . Treads 634 | 27 381 226 Legs . | . . . Wheels . | . . . Hover . | . . . Flight . | . . . Fastest Speed 50 | 50 160 160 Average Speed 158 | 134 160 160 Slowest Speed 180 | 160 160 180 Overloaded Moves . | . . . Propulsion Burnouts . | . . . Robots Hopped . | . . . Cave-ins Triggered . | . . . Exploration Rate (%) 44 | 4 68 61 Regions Visited 2 Branch Regions 1 Pre-discovered Areas . | . . . Known Exits Taken 1 | . 1 . Unknown Exits Taken 1 | 1 . . Scrap Searched . | . . . Spaces Dug 1 | . . 1 Terrain Destroyed 1 | . . 1 Melee . | . . . Projectile 1 | . . 1 AOE . | . . . Terrain Rammed . | . . . Walls Destroyed . | . . . Machines Disabled . | . . . Actions | -11 -10 -10 --------- Run | Scr Mat Min Total 755 | 64 433 258 Wait 2 | . 2 . Move 640 | 34 380 226 Hop . | . . . Pick Up 14 | 6 6 2 Fast Attach 7 | 4 2 1 Attach 7 | 3 1 3 Detach 2 | . 2 . Swap 5 | . 3 2 Drop 4 | . 4 . Fire 74 | 17 33 24 Melee . | . . . Ram . | . . . Kick . | . . . Crush . | . . . Escape Stasis . | . . . Rewire . | . . . Trap . | . . . Miscellaneous . | . . . Route ------- -11/Scrapyard -10/Materials (discovered 3 exits: [*Mat] / *Min x2) -10/Mines (discovered 2 exits: [*Mat x2]) History --------- Turn | Location | Event 9 | -11/Scrapyard | Discovered new exit (range 16) 110 | -11/Scrapyard | Entered Materials 337 | -10/Materials | Build established: Mutant 543 | -10/Materials | Discovered new exit (range 11) 571 | -10/Materials | Discovered new exit (range 16) 645 | -10/Materials | Central database locked down 645 | -10/Materials | Identified exit to Mines 834 | -10/Materials | Entered Mines 890 | -10/Mines | Found the Drone Emporium 1037 | -10/Mines | Discovered new exit (range 5) 1150 | -10/Mines | A weapon hastily lodged in a ceiling crevice suddenly fell to the ground 1168 | -10/Mines | Discovered new exit (range 9) 1238 | -10/Mines | Assembled infested the area 1241 | -10/Mines | Core integrity fell below 50% 1261 | -10/Mines | Core integrity fell below 20% 1275 | -10/Mines | Destroyed by D-53 Grenadier with Mini Grenade Launcher Last Messages --------------- 01252_ as-90832 destroyed. 01252_ as-14215 destroyed. 01252_ as-56005 destroyed. 01252_ as-37821 destroyed. 01252_ as-62301 destroyed. 01252_ as-46537 destroyed. 01254_ as-63052 destroyed. 01254_ as-73761 destroyed. 01255_ as-02055 powers down. 01255_ as-68743 powers down. 01255_ as-41160 powers down. 01257_ The unstable cave ceiling collapses. 01257_ as-90639 destroyed. 01259_ as-19796 destroyed. 01260_ The unstable cave ceiling collapses. 01262_ Lgt. Assault Rifle destroyed. 01266_ Lgt. Treads destroyed. 01268_ System corrupted: Matter fused (-10). 01268_ The unstable cave ceiling collapses. 01271_ Ion Engine destroyed. Map ----- +----------------------------------------------------+ | ?????????????????????????????????????????????? | | ?????????????????????????????????????????????? | | ?????????????? ??????????????????????????????? | | ????? ??????? ??????????????????????????????? | | ????????????# ??????????????????????????????? | | ???????????# ??????????????????????????????? | | ??????????? ?? ???????????????????????????? | | ??????????# ????#?????????????????????????? | | ???#??????" ??????????????????????????????? | | ?#???????## "#??????????????????????????????? | | ?????????# "#??????????????????????????????? | | ??????#### ##?????????????????????????????? | | ??????# # ##????????????????????????????? | | ???#??## #????????????????????????????? | | ?????## #????#???????????????????????? | | ?????# % #????????????????????????????? | | ?????# ####?????????????????????????? | | ????## ##????????????????????????? | | ????# % d ###??????????????????????? | | ????# # # ##?????????????????????? | | ????# # d #?????????????????????? | | ????# ## ###???????????????????? | | ??#?# #### #???????????????????? | | ????#*#??## #???????????????????? | | ???## ##??## # ###?????????????????? | | ??##!==##??## @ ##????????????????? | | ??# #???## #????????????????? | | ??# #????## #????????????????? | | ??# ##????######### ##????????????????? | | ??## ##???????#????#####?????????????????? | | ???## < #??????????????????????????????????? | | ????## ######????#????????????????????????? | | ????### #?????????????????????????????? | | ?????### #?#?????????????????????????### | | #?????######## #???????????????????????????# | | ??????????##?# ####????????????????????????# | | ??????#?????## ##??#????????????????????# | | ?#???#??#???# #?##???? ???????#??????## | | ????????????# #??????? #??????????#??# | | ???#?????#?## ##?????? #??????????#?## | | ????#??????# ##?#??# ???????????## | | ????##?????# ##???## #?????#??????# | | ???????????# ##?? #?##??????????# | | ?????#?????# = ## #???????????????# | | ?????#????## | #?????# ########## | | ???????????## #?????## =* = | | ??????????#?# ######?#????####### #### | | ?????#??????# =#####??##???????#???### ##?## | | ???#????????#! #######################* ##?## | | ???#????????# * = ## #??## | +----------------------------------------------------+ Best States ------------- Heat Dissipation 25 Energy Generation 10 Energy Capacity 250 Matter Stores 300 Matter Capacity 300 Sight Range 16 Terrain Scan Range 16 Terrain Scan Density 10 Evasion (%) 50 Recoil Reduction 2 Item Schematics ----------------- Lrg. Storage Unit | -10/Materials | Hacked Robot Schematics ------------------ None Fabricated ------------ Nothing Alien Tech Used ----------------- None Achievements -------------- None Challenges ------------ None Game ------ Seed PortableHoverJammer Manual? 0 Play Time 00:12:47 Cumulative 354.0 hours Start 2021.10.24 @ 12:05:23 End 2021.10.24 @ 12:15:17 Sessions 1 Manual Loads 0 Difficulty Rogue Special Mode None Game No. 172 Rogue 55 Adventurer 115 Explorer 2 Win Type - Total 31 Types 28/2/0/0/0/0/0/0/1 Lore% 55 Gallery% 81 Achievement% 58 Wizard Run 0 Options --------- ASCII 0 Keyboard 1 Movement Numpad Keybinds 0 Fullscreen 1 Font 36/TerminusFine Map View 76x50 Tactical HUD 1 Map Filters NONE Filters NONE Steam 1 RUN: 63c49410-c2f8-4a0a-82cb-057532b56f14